fUSD/lending_fUSD_20241223
["ID","MTS","AMOUNT","RATE_DAILY","PERIOD"]
[346387072,1734933042367,-500.0,0.00019178,2]
[346387073,1734933042375,-1670.25,0.00019178,2]
[346387074,1734933042385,-2536.53,0.00019178,2]
[346387075,1734933042394,-500.0,0.00019178,2]
[346387076,1734933042404,-502.99961476,0.00019178,2]
[346387077,1734933042414,-905.24,0.00019178,2]
[346387078,1734933042424,-500.0,0.00019178,2]
[346387079,1734933042434,-500.0,0.00019178,2]
[346387080,1734933042443,-806.71,0.00019178,2]
[346387081,1734933042452,-507.30243277,0.00019178,2]
[346387082,1734933042462,-1732.3,0.00019178,2]
[346387083,1734933042471,-500.0,0.00019178,2]
[346387084,1734933042481,-500.0,0.00019178,2]
[346387085,1734933042490,-1041.97,0.00019178,2]
[346387086,1734933042500,-201.61288999,0.00019178,2]
[346387087,1734933042512,-502.9068583,0.00019178,2]
[346387088,1734933042521,-500.0,0.00019178,2]
[346387089,1734933042530,-2410.93,0.00019178,2]
[346387090,1734933042540,-500.0,0.00019178,2]
[346387091,1734933042549,-1299.83,0.00019178,2]
[346387092,1734933042559,-500.0,0.00019178,2]
[346387093,1734933042568,-1865.73,0.00019178,2]
[346387094,1734933042579,-505.82142864,0.00019178,2]
[346387095,1734933042588,-500.0,0.00019178,2]
[346387096,1734933042598,-2964.31,0.00019178,2]
[346387097,1734933042608,-500.0,0.00019178,2]
[346387098,1734933042617,-535.02,0.00019178,2]
[346387099,1734933042627,-500.0,0.00019178,2]
[346387100,1734933042636,-1024.78,0.00019178,2]
[346387101,1734933042645,-500.0,0.00019178,2]
[346387102,1734933042654,-500.0,0.00019178,2]
[346387103,1734933042663,-500.0,0.00019178,2]
[346387104,1734933042672,-500.0,0.00019178,2]
[346387105,1734933042681,-788.28,0.00019178,2]
[346387106,1734933042691,-500.0,0.00019178,2]
[346387107,1734933042700,-2205.53,0.00019178,2]
[346387108,1734933042709,-500.0,0.00019178,2]
[346387109,1734933042719,-508.31385494,0.00019178,2]
[346387110,1734933042728,-4525.5,0.00019178,2]
[346387111,1734933042737,-1546.07,0.00019178,2]
[346387112,1734933042746,-500.0,0.00019178,2]
[346387113,1734933042756,-584.25,0.00019178,2]
[346387114,1734933042767,-500.0,0.00019178,2]
[346387115,1734933042777,-500.0,0.00019178,2]
[346387116,1734933042786,-500.0,0.00019178,2]
[346387117,1734933042795,-1572.15,0.00019178,2]
[346387118,1734933042805,-502.16016707,0.00019178,2]
[346387119,1734933042814,-2575.88,0.00019178,2]
[346387120,1734933042823,-3031.08,0.00019178,2]
[346387121,1734933042832,-33550.08,0.00019178,2]
[346387122,1734933042842,-500.0,0.00019178,2]
[346387123,1734933042851,-621.61,0.00019178,2]
[346387124,1734933042860,-500.0,0.00019178,2]
[346387125,1734933042870,-500.0,0.00019178,2]
[346387126,1734933042879,-500.0,0.00019178,2]
[346387127,1734933042888,-11188.2,0.00019178,2]
[346387128,1734933042898,-500.0,0.00019178,2]
[346387129,1734933042907,-500.0,0.00019178,2]
[346387131,1734933042916,-904.53,0.00019178,2]
[346387133,1734933042925,-505.38028495,0.00019178,2]
[346387134,1734933042935,-500.0,0.00019178,2]
[346387135,1734933042944,-500.0,0.00019178,2]
[346387136,1734933042953,-500.0,0.00019178,2]
[346387137,1734933042962,-500.0,0.00019178,2]
[346387138,1734933042971,-500.0,0.00019178,2]
[346387139,1734933042980,-502.67161958,0.00019178,2]
[346387140,1734933042990,-500.0,0.00019178,2]
[346387141,1734933042999,-500.0,0.00019178,2]
[346387142,1734933043009,-2712.33,0.00019178,2]
[346387143,1734933043020,-1961.45,0.00019178,2]
[346387144,1734933043029,-1018.63,0.00019178,2]
[346387146,1734933043038,-502.48953168,0.00019178,2]
[346387148,1734933043048,-377.85969481,0.00019178,2]
[346387149,1734933043057,-848.01,0.00019178,2]
[346387150,1734933043067,-500.0,0.00019178,2]
[346387151,1734933043076,-502.92988441,0.00019178,2]
[346387152,1734933043086,-503.28238837,0.00019178,2]
[346387153,1734933043095,-549.94848906,0.00019178,2]
[346387154,1734933043104,-14884.76,0.00019178,2]
[346387155,1734933043114,-500.0,0.00019178,2]
[346387156,1734933043122,-500.0,0.00019178,2]
[346387157,1734933043132,-1450.42,0.00019178,2]
[346387158,1734933043143,-1760.9,0.00019178,2]
[346387159,1734933043152,-500.0,0.00019178,2]
[346387160,1734933043162,-1021.38,0.00019178,2]
[346387161,1734933043171,-500.0,0.00019178,2]
[346387162,1734933043180,-1092.51,0.00019178,2]
[346387163,1734933043189,-500.0,0.00019178,2]
[346387164,1734933043199,-683.11,0.00019178,2]
[346387165,1734933043209,-8099.19,0.00019178,2]
[346387166,1734933043218,-500.0,0.00019178,2]
[346387167,1734933043227,-502.12180773,0.00019178,2]
[346387168,1734933043237,-1109.19,0.00019178,2]
[346387169,1734933043249,-500.0,0.00019178,2]
[346387170,1734933043259,-504.31448156,0.00019178,2]
[346387171,1734933043270,-1069.2,0.00019178,2]
[346387172,1734933043280,-1643.07,0.00019178,2]
[346387173,1734933043291,-500.0,0.00019178,2]
[346387174,1734933043302,-648.8,0.00019178,2]
[346387175,1734933043312,-500.0,0.00019178,2]
[346387176,1734933043322,-500.7137013,0.00019178,2]
[346387177,1734933043333,-630.88,0.00019178,2]
[346387178,1734933043343,-501.30049216,0.00019178,2]
[346387179,1734933043353,-500.0,0.00019178,2]
[346387180,1734933043362,-500.0,0.00019178,2]
[346387181,1734933043372,-500.0,0.00019178,2]
[346387182,1734933043382,-500.0,0.00019178,2]
[346387183,1734933043392,-1207.5,0.00019178,2]
[346387184,1734933043401,-500.0,0.00019178,2]
[346387185,1734933043410,-1548.01,0.00019178,2]
[346387186,1734933043420,-574.93,0.00019178,2]
[346387187,1734933043429,-332.39863972,0.00019178,2]
[346387188,1734933043439,-500.57798728,0.00019178,2]
[346387189,1734933043448,-500.0,0.00019178,2]
[346387190,1734933043458,-500.0,0.00019178,2]
[346387191,1734933043467,-1420.83,0.00019178,2]
[346387192,1734933043476,-500.0,0.00019178,2]
[346387193,1734933043486,-500.0,0.00019178,2]
[346387194,1734933043495,-500.0,0.00019178,2]
[346387195,1734933043505,-2670.29,0.00019178,2]
[346387196,1734933043516,-2011.18,0.00019178,2]
[346387197,1734933043525,-501.65519672,0.00019178,2]
[346387198,1734933043535,-500.0,0.00019178,2]
[346387199,1734933043544,-500.0,0.00019178,2]
[346387200,1734933043554,-500.0,0.00019178,2]
[346387201,1734933043563,-500.0,0.00019178,2]
[346387202,1734933043573,-500.0,0.00019178,2]
[346387203,1734933043581,-500.0,0.00019178,2]
[346387204,1734933043591,-1200.41,0.00019178,2]
[346387205,1734933043600,-2403.81,0.00019178,2]
[346387206,1734933043609,-500.0,0.00019178,2]
[346387208,1734933043618,-500.0,0.00019178,2]
[346387209,1734933043627,-500.0,0.00019178,2]
[346387210,1734933043637,-571.41,0.00019178,2]
[346387211,1734933043646,-3329.62,0.00019178,2]
[346387212,1734933043655,-503.5354012,0.00019178,2]
[346387213,1734933043664,-500.0,0.00019178,2]
[346387214,1734933043673,-2645.06,0.00019178,2]
[346387215,1734933043682,-615.8,0.00019178,2]
[346387216,1734933043691,-500.0,0.00019178,2]
[346387217,1734933043701,-500.0,0.00019178,2]
[346387218,1734933043710,-503.03166468,0.00019178,2]
[346387219,1734933043719,-504.69467205,0.00019178,2]
[346387220,1734933043729,-5396.02,0.00019178,2]
[346387221,1734933043739,-1792.2,0.00019178,2]
[346387222,1734933043748,-785.27,0.00019178,2]
[346387223,1734933043757,-500.0,0.00019178,2]
[346387224,1734933043767,-3171.71,0.00019178,2]
[346387225,1734933043776,-500.0,0.00019178,2]
[346387226,1734933043785,-501.16003199,0.00019178,2]
[346387227,1734933043794,-500.0,0.00019178,2]
[346387228,1734933043803,-10002.98,0.00019178,2]
[346387229,1734933043812,-18752.7,0.00019178,2]
[346387230,1734933043822,-2143.88,0.00019178,2]
[346387231,1734933043831,-578.05,0.00019178,2]
[346387232,1734933043840,-500.0,0.00019178,2]
[346387233,1734933043849,-503.83928717,0.00019178,2]
[346387234,1734933043859,-500.0,0.00019178,2]
[346387235,1734933043868,-2134.2,0.00019178,2]
[346387236,1734933043877,-494.57069801,0.00019178,2]
[346387237,1734933043886,-500.0,0.00019178,2]
[346387238,1734933043896,-510.78643444,0.00019178,2]
[346387239,1734933043905,-1755.34,0.00019178,2]
[346387240,1734933043915,-1229.22,0.00019178,2]
[346387241,1734933043924,-500.0,0.00019178,2]
[346387242,1734933043933,-500.0,0.00019178,2]
[346387243,1734933043943,-503.1897617,0.00019178,2]
[346387244,1734933043952,-1660.55,0.00019178,2]
[346387245,1734933043961,-504.23254313,0.00019178,2]
[346387246,1734933043971,-500.0,0.00019178,2]
[346387247,1734933043980,-500.0,0.00019178,2]
[346387248,1734933043989,-500.0,0.00019178,2]
[346387249,1734933043998,-659.68,0.00019178,2]
[346387250,1734933044007,-503.98353946,0.00019178,2]
[346387251,1734933044016,-5772.02,0.00019178,2]
[346387252,1734933044026,-500.0,0.00019178,2]
[346387253,1734933044035,-500.0,0.00019178,2]
[346387254,1734933044045,-3462.73,0.00019178,2]
[346387255,1734933044054,-1829.0,0.00019178,2]
[346387256,1734933044063,-2364.74,0.00019178,2]
[346387257,1734933044073,-1185.49,0.00019178,2]
[346387258,1734933044083,-500.0,0.00019178,2]
[346387259,1734933044247,-1687.67,0.00019178,2]
[346387260,1734933044258,-500.0,0.00019178,2]
[346387261,1734933044268,-1023.14,0.00019178,2]
[346387262,1734933044277,-500.0,0.00019178,2]
[346387263,1734933044287,-496.81202227,0.00019178,2]
[346387264,1734933044296,-1317.39,0.00019178,2]
[346387265,1734933044306,-4593.44,0.00019178,2]
[346387266,1734933044316,-500.0,0.00019178,2]
[346387267,1734933044326,-506.64894724,0.00019178,2]
[346387268,1734933044336,-503.71511299,0.00019178,2]
[346387269,1734933044346,-1198.69,0.00019178,2]
[346387270,1734933044355,-4113.41,0.00019178,2]
[346387271,1734933044364,-500.0,0.00019178,2]
[346387272,1734933044373,-2254.33,0.00019178,2]
[346387273,1734933044383,-4095.19,0.00019178,2]
[346387274,1734933044392,-507.45684296,0.00019178,2]
[346387275,1734933044402,-500.0,0.00019178,2]
[346387276,1734933044412,-787.71,0.00019178,2]
[346387277,1734933044422,-2040.2,0.00019178,2]
[346387278,1734933044431,-500.0,0.00019178,2]
[346387279,1734933044441,-500.0,0.00019178,2]
[346387280,1734933044450,-506.14805048,0.00019178,2]
[346387281,1734933044459,-501.66,0.00019178,2]
[346387282,1734933044469,-500.0,0.00019178,2]
[346387283,1734933044478,-502.84133223,0.00019178,2]
[346387284,1734933044488,-963.58,0.00019178,2]
[346387285,1734933044497,-507.64158666,0.00019178,2]
[346387286,1734933044507,-1246.13,0.00019178,2]
[346387287,1734933044516,-500.0,0.00019178,2]
[346387288,1734933044526,-1279.08,0.00019178,2]
[346387289,1734933044535,-3509.72,0.00019178,2]
[346387290,1734933044544,-500.0,0.00019178,2]
[346387291,1734933044553,-794.55,0.00019178,2]
[346387292,1734933044563,-500.0,0.00019178,2]
[346387293,1734933044573,-941.74,0.00019178,2]
[346387294,1734933044582,-3058.93,0.00019178,2]
[346387295,1734933044592,-500.0,0.00019178,2]
[346387296,1734933044601,-2073.39,0.00019178,2]
[346387297,1734933044611,-1192.47,0.00019178,2]
[346387298,1734933044620,-500.0,0.00019178,2]
[346387299,1734933044629,-4497.3,0.00019178,2]
[346387300,1734933044638,-500.0,0.00019178,2]
[346387301,1734933044647,-6900.94,0.00019178,2]
[346387302,1734933044656,-500.0,0.00019178,2]
[346387303,1734933044665,-580.64,0.00019178,2]
[346387304,1734933044674,-504.07,0.00019178,2]
[346387305,1734933044683,-500.0,0.00019178,2]
[346387306,1734933044692,-500.0,0.00019178,2]
[346387307,1734933044701,-500.0,0.00019178,2]
[346387308,1734933044711,-8370.15,0.00019178,2]
[346387309,1734933044720,-500.0,0.00019178,2]
[346387310,1734933044729,-854.92,0.00019178,2]
[346387311,1734933044738,-500.0,0.00019178,2]
[346387312,1734933044747,-500.0,0.00019178,2]
[346387313,1734933044757,-500.0,0.00019178,2]
[346387314,1734933044767,-608.72,0.00019178,2]
[346387315,1734933044775,-500.0,0.00019178,2]
[346387316,1734933044785,-500.0,0.00019178,2]
[346387317,1734933044794,-922.99,0.00019178,2]
[346387318,1734933044803,-847.39,0.00019178,2]
[346387319,1734933044812,-500.0,0.00019178,2]
[346387320,1734933044821,-500.0,0.00019178,2]
[346387321,1734933044831,-645.24887633,0.00019178,2]
[346387322,1734933044840,-1971.08,0.00019178,2]
[346387323,1734933044849,-580.68,0.00019178,2]
[346387324,1734933044858,-629.05,0.00019178,2]
[346387325,1734933044867,-826.3,0.00019178,2]
[346387326,1734933044875,-712.96,0.00019178,2]
[346387327,1734933044885,-500.0,0.00019178,2]
[346387328,1734933044894,-3560.04,0.00019178,2]
[346387329,1734933044902,-150.0,0.00019178,2]
[346387330,1734933044911,-436.07,0.00019178,2]
[346387331,1734933044920,-150.0,0.00019178,2]
[346387332,1734933044929,-364.95,0.00019178,2]
[346387333,1734933044939,-307.82869053,0.00019233,2]
[346387334,1734933044948,-209.0,0.0001926,2]
[346387335,1734933044957,-491.49754242,0.00019261,2]
[346387336,1734933044967,-152.0,0.00019292,3]
[346387337,1734933044975,-152.52115859,0.00019314,2]
[346387338,1734933044984,-1344.2,0.00019314,2]
[346387339,1734933044994,-307.82869053,0.00019344,2]
[346387340,1734933045003,-491.49754242,0.00019352,2]
[346387341,1734933045013,-13666.998,0.0001938,2]
[346387342,1734933045022,-491.49754242,0.00019443,2]
[346387343,1734933045031,-503.81265985,0.00019452,2]
[346387344,1734933045040,-500.0,0.00019452,2]
[346387345,1734933045049,-500.0,0.00019452,2]
[346387346,1734933045059,-500.0,0.00019452,2]
[346387347,1734933045068,-500.0,0.00019452,2]
[346387348,1734933045077,-560.60739944,0.00019452,2]
[346387349,1734933045087,-500.0,0.00019452,2]
[346387350,1734933045096,-500.0,0.00019452,2]
[346387351,1734933045108,-500.0,0.00019452,2]
[346387352,1734933045124,-500.0,0.00019452,2]
[346387353,1734933045136,-500.0,0.00019452,2]
[346387354,1734933045147,-500.0,0.00019452,2]
[346387355,1734933045160,-500.0,0.00019452,2]
[346387356,1734933045169,-500.0,0.00019452,2]
[346387357,1734933045178,-500.0,0.00019452,2]
[346387358,1734933045188,-1476.62,0.00019452,2]
[346387359,1734933045197,-500.0,0.00019452,2]
[346387360,1734933045206,-500.0,0.00019452,2]
[346387361,1734933045215,-2000.0,0.00019452,15]
[346387362,1734933045224,-500.0,0.00019452,2]
[346387363,1734933045234,-1649.598736,0.00019452,2]
[346387364,1734933045244,-1901.945148,0.00019452,2]
[346387365,1734933045255,-513.87724825,0.00019452,2]
[346387366,1734933045266,-627.12236635,0.00019452,2]
[346387367,1734933045275,-500.0,0.00019452,2]
[346387368,1734933045286,-500.0,0.00019452,2]
[346387369,1734933045295,-500.0,0.00019452,2]
[346387370,1734933045306,-750.21,0.00019452,2]
[346387371,1734933045315,-500.0,0.00019452,2]
[346387372,1734933045325,-500.0,0.00019452,2]
[346387373,1734933045334,-500.0,0.00019452,2]
[346387374,1734933045344,-500.0,0.00019452,2]
[346387375,1734933045353,-500.0,0.00019452,2]
[346387376,1734933045363,-500.0,0.00019452,2]
[346387377,1734933045373,-500.0,0.00019452,2]
[346387378,1734933045382,-500.0,0.00019452,2]
[346387379,1734933045392,-500.0,0.00019452,2]
[346387380,1734933045402,-500.0,0.00019452,2]
[346387381,1734933045411,-500.0,0.00019452,2]
[346387382,1734933045420,-500.0,0.00019452,2]
[346387383,1734933045430,-912.13,0.00019452,2]
[346387384,1734933045439,-500.0,0.00019452,2]
[346387385,1734933045449,-628.43,0.00019452,2]
[346387386,1734933045459,-506.24,0.00019452,2]
[346387387,1734933045468,-500.0,0.00019452,2]
[346387388,1734933045477,-500.0,0.00019452,2]
[346387389,1734933045486,-500.0,0.00019452,2]
[346387390,1734933045495,-500.0,0.00019452,2]
[346387391,1734933045505,-500.0,0.00019452,2]
[346387392,1734933045517,-500.0,0.00019452,2]
[346387393,1734933045526,-806.69,0.00019452,2]
[346387394,1734933045535,-759.07,0.00019452,2]
[346387395,1734933045545,-500.0,0.00019452,2]
[346387396,1734933045554,-500.0,0.00019452,2]
[346387397,1734933045564,-500.0,0.00019452,2]
[346387398,1734933045573,-580.92,0.00019452,2]
[346387399,1734933045582,-500.0,0.00019452,2]
[346387400,1734933045592,-500.0,0.00019452,2]
[346387401,1734933045601,-740.56,0.00019452,2]
[346387402,1734933045609,-500.0,0.00019452,2]
[346387403,1734933045619,-500.0,0.00019452,2]
[346387404,1734933045628,-500.0,0.00019452,2]
[346387405,1734933045637,-830.12,0.00019452,2]
[346387406,1734933045646,-550.10876371,0.00019452,2]
[346387407,1734933045655,-500.0,0.00019452,2]
[346387408,1734933045664,-500.0,0.00019452,2]
[346387409,1734933045674,-500.0,0.00019452,2]
[346387410,1734933045683,-500.0,0.00019452,2]
[346387411,1734933045692,-500.0,0.00019452,2]
[346387412,1734933045701,-500.0,0.00019452,2]
[346387413,1734933045711,-500.0,0.00019452,2]
[346387414,1734933045720,-500.0,0.00019452,2]
[346387415,1734933045730,-500.0,0.00019452,2]
[346387416,1734933045740,-500.0,0.00019452,2]
[346387417,1734933045750,-500.0,0.00019452,2]
[346387418,1734933045760,-500.0,0.00019452,2]
[346387419,1734933045771,-500.0,0.00019452,2]
[346387420,1734933045781,-574.32,0.00019452,2]
[346387421,1734933045791,-500.0,0.00019452,2]
[346387422,1734933045801,-933.61,0.00019452,2]
[346387423,1734933045810,-500.0,0.00019452,2]
[346387424,1734933045819,-500.0,0.00019452,2]
[346387425,1734933045829,-505.27738219,0.00019452,2]
[346387426,1734933045838,-778.09,0.00019452,2]
[346387427,1734933045847,-500.0,0.00019452,2]
[346387428,1734933045857,-500.0,0.00019452,2]
[346387429,1734933045866,-659.37,0.00019452,2]
[346387430,1734933045875,-500.0,0.00019452,2]
[346387431,1734933045885,-500.0,0.00019452,2]
[346387432,1734933045894,-500.0,0.00019452,2]
[346387433,1734933045903,-500.0,0.00019452,2]
[346387435,1734933045913,-500.0,0.00019452,2]
[346387436,1734933045922,-500.0,0.00019452,2]
[346387437,1734933045931,-500.0,0.00019452,2]
[346387439,1734933045940,-500.0,0.00019452,2]
[346387440,1734933045950,-500.0,0.00019452,2]
[346387441,1734933045959,-500.0,0.00019452,2]
[346387442,1734933045968,-500.0,0.00019452,2]
[346387443,1734933045977,-702.06,0.00019452,2]
[346387444,1734933045988,-500.0,0.00019452,2]
[346387445,1734933045997,-500.0,0.00019452,2]
[346387446,1734933046006,-909.94,0.00019452,2]
[346387447,1734933046016,-500.0,0.00019452,2]
[346387448,1734933046025,-1541.29,0.00019452,2]
[346387449,1734933046034,-621.09,0.00019452,2]
[346387450,1734933046043,-500.0,0.00019452,2]
[346387451,1734933046053,-500.0,0.00019452,2]
[346387452,1734933046062,-500.0,0.00019452,2]
[346387453,1734933046071,-500.0,0.00019452,2]
[346387454,1734933046080,-500.0,0.00019452,2]
[346387455,1734933046089,-500.0,0.00019452,2]
[346387457,1734933046098,-500.0,0.00019452,2]
[346387458,1734933046108,-500.0,0.00019452,2]
[346387459,1734933046117,-507.96147048,0.00019452,2]
[346387460,1734933046126,-1056.38,0.00019452,2]
[346387461,1734933046135,-998.68,0.00019452,2]
[346387463,1734933046144,-500.0,0.00019452,2]
[346387465,1734933046153,-842.63,0.00019452,2]
[346387466,1734933046162,-500.0,0.00019452,2]
[346387467,1734933046172,-500.0,0.00019452,2]
[346387468,1734933046181,-500.0,0.00019452,2]
[346387469,1734933046190,-500.0,0.00019452,2]
[346387470,1734933046199,-1028.62,0.00019452,2]
[346387471,1734933046208,-500.0,0.00019452,2]
[346387472,1734933046217,-731.31,0.00019452,2]
[346387473,1734933046226,-500.0,0.00019452,2]
[346387474,1734933046235,-500.0,0.00019452,2]
[346387475,1734933046245,-500.0,0.00019452,2]
[346387476,1734933046256,-685.7,0.00019452,2]
[346387477,1734933046266,-500.0,0.00019452,2]
[346387478,1734933046275,-500.0,0.00019452,2]
[346387479,1734933046285,-500.0,0.00019452,2]
[346387480,1734933046294,-500.0,0.00019452,2]
[346387481,1734933046304,-500.0,0.00019452,2]
[346387482,1734933046313,-500.0,0.00019452,2]
[346387483,1734933046324,-500.0,0.00019452,2]
[346387484,1734933046333,-751.56,0.00019452,2]
[346387485,1734933046342,-500.0,0.00019452,2]
[346387486,1734933046351,-559.43,0.00019452,2]
[346387487,1734933046360,-971.65,0.00019452,2]
[346387488,1734933046370,-500.0,0.00019452,2]
[346387489,1734933046379,-1066.68,0.00019452,2]
[346387490,1734933046388,-500.0,0.00019452,2]
[346387491,1734933046397,-500.0,0.00019452,2]
[346387492,1734933046406,-502.97424383,0.00019452,2]
[346387493,1734933046416,-500.0,0.00019452,2]
[346387494,1734933046425,-500.0,0.00019452,2]
[346387495,1734933046434,-500.0,0.00019452,2]
[346387496,1734933046443,-1042.27,0.00019452,2]
[346387497,1734933046452,-500.0,0.00019452,2]
[346387498,1734933046462,-365.57886111,0.00019452,2]
[346387499,1734933046471,-507.89904507,0.00019452,2]
[346387500,1734933046480,-500.0,0.00019452,2]
[346387501,1734933046488,-500.0,0.00019452,2]
[346387502,1734933046498,-500.0,0.00019452,2]
[346387503,1734933046507,-500.0,0.00019452,2]
[346387504,1734933046517,-500.0,0.00019452,2]
[346387506,1734933046526,-500.0,0.00019452,2]
[346387507,1734933046536,-500.0,0.00019452,2]
[346387508,1734933046545,-513.79753504,0.00019452,2]
[346387509,1734933046555,-500.0,0.00019452,2]
[346387510,1734933046564,-500.0,0.00019452,2]
[346387511,1734933046573,-150.86985593,0.00019452,2]
[346387512,1734933046582,-500.0,0.00019452,2]
[346387513,1734933046590,-1116.98,0.00019452,2]
[346387514,1734933046599,-500.99521009,0.00019452,2]
[346387515,1734933046609,-654.95,0.00019452,2]
[346387516,1734933046618,-500.0,0.00019452,2]
[346387517,1734933046627,-500.0,0.00019452,2]
[346387518,1734933046636,-504.02212258,0.00019452,2]
[346387519,1734933046645,-500.0,0.00019452,2]
[346387520,1734933046654,-500.0,0.00019452,2]
[346387521,1734933046663,-552.89,0.00019452,2]
[346387522,1734933046673,-504.03857432,0.00019452,2]
[346387523,1734933046682,-500.0,0.00019452,2]
[346387524,1734933046692,-500.0,0.00019452,2]
[346387525,1734933046701,-500.0,0.00019452,2]
[346387526,1734933046710,-500.0,0.00019452,2]
[346387527,1734933046719,-500.0,0.00019452,2]
[346387528,1734933046728,-500.0,0.00019452,2]
[346387529,1734933046737,-500.0,0.00019452,2]
[346387530,1734933046747,-500.0,0.00019452,2]
[346387531,1734933046756,-945.64,0.00019452,2]
[346387532,1734933046765,-500.0,0.00019452,2]
[346387533,1734933046775,-500.0,0.00019452,2]
[346387534,1734933046784,-503.98355471,0.00019452,2]
[346387535,1734933046793,-694.34,0.00019452,2]
[346387536,1734933046802,-500.0,0.00019452,2]
[346387537,1734933046811,-500.0,0.00019452,2]
[346387538,1734933046820,-500.0,0.00019452,2]
[346387539,1734933046829,-500.0,0.00019452,2]
[346387540,1734933046839,-874.97,0.00019452,2]
[346387541,1734933046849,-522.23479402,0.00019452,2]
[346387542,1734933046858,-860.09,0.00019452,2]
[346387543,1734933046867,-500.0,0.00019452,2]
[346387544,1734933046876,-500.0,0.00019452,2]
[346387546,1734933046886,-500.0,0.00019452,2]
[346387547,1734933046895,-1653.01,0.00019452,2]
[346387548,1734933046904,-500.0,0.00019452,2]
[346387549,1734933046913,-538.80131202,0.00019452,2]
[346387550,1734933046922,-500.0,0.00019452,2]
[346387551,1734933046931,-500.0,0.00019452,2]
[346387552,1734933046940,-505.65423985,0.00019452,2]
[346387553,1734933047094,-500.0,0.00019452,2]
[346387554,1734933047104,-927.22,0.00019452,2]
[346387555,1734933047115,-500.0,0.00019452,2]
[346387556,1734933047125,-500.0,0.00019452,2]
[346387557,1734933047134,-500.0,0.00019452,2]
[346387558,1734933047143,-1355.43,0.00019452,2]
[346387559,1734933047152,-827.2,0.00019452,2]
[346387560,1734933047162,-500.0,0.00019452,2]
[346387561,1734933047172,-509.69645487,0.00019452,2]
[346387562,1734933047181,-508.11282398,0.00019452,2]
[346387563,1734933047190,-500.0,0.00019452,2]
[346387564,1734933047199,-849.62,0.00019452,2]
[346387565,1734933047209,-500.0,0.00019452,2]
[346387566,1734933047218,-500.0,0.00019452,2]
[346387567,1734933047227,-500.0,0.00019452,2]
[346387568,1734933047236,-500.0,0.00019452,2]
[346387569,1734933047246,-1132.59,0.00019452,2]
[346387570,1734933047258,-500.0,0.00019452,2]
[346387571,1734933047268,-507.36659466,0.00019452,2]
[346387572,1734933047283,-500.0,0.00019452,2]
[346387573,1734933047296,-500.0,0.00019452,2]
[346387574,1734933047309,-500.0,0.00019452,2]
[346387575,1734933047320,-500.0,0.00019452,2]
[346387576,1734933047331,-1291.17,0.00019452,2]
[346387577,1734933047340,-1434.92,0.00019452,2]
[346387578,1734933047349,-500.0,0.00019452,2]
[346387579,1734933047359,-500.0,0.00019452,2]
[346387580,1734933047368,-500.0,0.00019452,2]
[346387581,1734933047377,-500.0,0.00019452,2]
[346387582,1734933047386,-1086.53,0.00019452,2]
[346387583,1734933047395,-762.61,0.00019452,2]